fUSD/lending_fUSD_20250107
["ID","MTS","AMOUNT","RATE_DAILY","PERIOD"]
[348068161,1736291465840,-500.0,0.00010646,2]
[348068162,1736291465850,-500.0,0.00010646,2]
[348068163,1736291465859,-2955.38,0.00010646,2]
[348068164,1736291465868,-674.92,0.00010646,2]
[348068165,1736291465878,-627.33,0.00010646,2]
[348068166,1736291465888,-500.0,0.00010646,2]
[348068167,1736291465897,-500.0,0.00010646,2]
[348068168,1736291465906,-500.0,0.00010646,2]
[348068169,1736291465916,-3212.39862663,0.00010646,2]
[348068170,1736291465941,-754.22137337,0.00010646,2]
[348068171,1736291465952,-188.36477663,0.00010646,2]
[348068172,1736291465964,-373.46775991,0.00010646,2]
[348068173,1736291465991,-385.72668453,0.00010221,2]
[348068174,1736291466001,-215.89746346,0.00010646,2]
[348068175,1736291466011,-355.77585206,0.00010646,2]
[348068176,1736291466024,-390.77414794,0.00010646,2]
[348068177,1736291466034,-541.8,0.00010646,2]
[348068178,1736291466044,-500.0,0.00010646,2]
[348068179,1736291466054,-500.0,0.00010646,2]
[348068180,1736291466064,-740.58,0.00010646,2]
[348068181,1736291466073,-500.0,0.00010646,2]
[348068182,1736291466082,-640.25,0.00010646,2]
[348068183,1736291466091,-904.57,0.00010646,2]
[348068184,1736291466100,-517.82,0.00010646,2]
[348068185,1736291466110,-975.45,0.00010646,2]
[348068186,1736291466119,-500.0,0.00010646,2]
[348068187,1736291466128,-946.25,0.00010646,2]
[348068188,1736291466137,-782.46,0.00010646,2]
[348068189,1736291466146,-909.84,0.00010646,2]
[348068190,1736291466156,-500.0,0.00010646,2]
[348068191,1736291466166,-500.0,0.00010646,2]
[348068192,1736291466176,-619.74,0.00010646,2]
[348068193,1736291466186,-500.0,0.00010646,2]
[348068194,1736291466198,-500.0,0.00010646,2]
[348068195,1736291466209,-1231.92,0.00010646,2]
[348068196,1736291466220,-500.0,0.00010646,2]
[348068197,1736291466230,-500.0,0.00010646,2]
[348068198,1736291466240,-500.0,0.00010646,2]
[348068199,1736291466249,-548.86,0.00010646,2]
[348068200,1736291466258,-500.0,0.00010646,2]
[348068201,1736291466267,-675.0,0.00010646,2]
[348068202,1736291466277,-500.0,0.00010646,2]
[348068203,1736291466286,-500.0,0.00010646,2]
[348068204,1736291466295,-500.0,0.00010646,2]
[348068205,1736291466304,-500.0,0.00010646,2]
[348068206,1736291466314,-700.15,0.00010646,2]
[348068207,1736291466323,-500.0,0.00010646,2]
[348068208,1736291466332,-516.78,0.00010646,2]
[348068209,1736291466342,-1247.08,0.00010647,2]
[348068210,1736291466351,-936.9,0.00010647,2]
[348068211,1736291466360,-1586.21,0.00010647,2]
[348068212,1736291466370,-1596.61,0.00010647,2]
[348068213,1736291466379,-2550.05,0.00010647,2]
[348068214,1736291466388,-1352.54,0.00010647,2]
[348068215,1736291466398,-4047.0,0.00010647,2]
[348068216,1736291466407,-1860.62,0.00010647,2]
[348068217,1736291466416,-1148.44,0.00010647,2]
[348068218,1736291466425,-2847.45,0.00010647,2]
[348068219,1736291466435,-1189.47,0.00010647,2]
[348068220,1736291466444,-1663.09,0.00010647,2]
[348068221,1736291466456,-537.26,0.00010647,2]
[348068222,1736291466465,-1713.19,0.00010647,2]
[348068223,1736291466475,-500.0,0.00010647,2]
[348068224,1736291466484,-1363.97,0.00010647,2]
[348068225,1736291466494,-918.71,0.00010647,2]
[348068226,1736291466503,-852.98,0.00010647,2]
[348068227,1736291466513,-443.18585206,0.00010647,2]
[348068228,1736291479581,153.22181,0.00023013,120]
[348068229,1736291591442,500.0,0.00022469,120]
[348068230,1736291593553,2000.0,0.00022469,120]
[348068231,1736291609717,200.0,0.00022469,120]
[348068233,1736291644524,5000.0,0.00023,120]
[348068235,1736292253278,-4322.83,8.39e-05,2]
[348068236,1736292253303,-250.0,8.419e-05,2]
[348068237,1736292253329,-250.0,8.445e-05,2]
[348068238,1736292253352,-1000.0,8.458e-05,2]
[348068239,1736292253374,-1930.19,8.691e-05,2]
[348068240,1736292253397,-660.67,8.944e-05,2]
[348068241,1736292253419,-11426.31,8.944e-05,2]
[348068253,1736292631825,-475.0,8.219e-05,2]
[348068254,1736292631836,-991.42,8.219e-05,2]
[348068255,1736292631846,-457.85,8.458e-05,2]
[348068256,1736292631855,-250.0,8.51e-05,2]
[348068257,1736292631865,-303.72748131,9.079e-05,2]
[348068258,1736292631876,-265.32721869,9.079e-05,2]
[348068259,1736292631885,-311.4713,9.079e-05,2]
[348068260,1736292631895,-92.47810189,9.079e-05,2]
[348068261,1736292631906,-3629.87599811,9.079e-05,2]
[348068262,1736292631916,-5270.1450057,9.079e-05,2]
[348068263,1736292631925,-150.0,9.079e-05,2]
[348068264,1736292631935,-22018.0,9.08e-05,2]
[348068265,1736292631944,-2351.89,9.137e-05,2]
[348068266,1736292631953,-1267.64,9.137e-05,2]
[348068267,1736292631963,-861.33,9.137e-05,2]
[348068268,1736292631972,-915.28,9.137e-05,2]
[348068269,1736292631981,-500.0,9.137e-05,2]
[348068270,1736292631991,-1100.64,9.137e-05,2]
[348068271,1736292632000,-673.78,9.137e-05,2]
[348068272,1736292632009,-754.88,9.137e-05,2]
[348068273,1736292632020,-802.12,9.137e-05,2]
[348068274,1736292632031,-1104.23,9.137e-05,2]
[348068275,1736292632040,-1542.83,9.137e-05,2]
[348068280,1736292632251,-2595.99,9.137e-05,2]
[348068283,1736292632277,-1547.9,9.137e-05,2]
[348068285,1736292632288,-7954.7903,9.176e-05,2]
[348068287,1736292632297,-500.0,9.179e-05,2]
[348068289,1736292632307,-500.0,9.179e-05,2]
[348068291,1736292632317,-500.0,9.179e-05,2]
[348068293,1736292632326,-500.0,9.179e-05,2]
[348068295,1736292632335,-500.0,9.179e-05,2]
[348068297,1736292632344,-500.0,9.179e-05,2]
[348068299,1736292632354,-500.0,9.179e-05,2]
[348068301,1736292632363,-500.0,9.179e-05,2]
[348068303,1736292632373,-560.18,9.179e-05,2]
[348068305,1736292632382,-500.0,9.179e-05,2]
[348068307,1736292632392,-500.0,9.179e-05,2]
[348068309,1736292632402,-500.0,9.179e-05,2]
[348068311,1736292632411,-532.9,9.179e-05,2]
[348068313,1736292632420,-500.0,9.179e-05,2]
[348068315,1736292632430,-500.0,9.179e-05,2]
[348068318,1736292632439,-838.97,9.179e-05,2]
[348068320,1736292632448,-500.0,9.179e-05,2]
[348068321,1736292632457,-500.0,9.179e-05,2]
[348068324,1736292632467,-500.0,9.179e-05,2]
[348068326,1736292632476,-500.0,9.179e-05,2]
[348068328,1736292632485,-500.0,9.179e-05,2]
[348068330,1736292632494,-500.0,9.179e-05,2]
[348068332,1736292632503,-500.0,9.179e-05,2]
[348068334,1736292632513,-500.0,9.179e-05,2]
[348068335,1736292632522,-500.0,9.179e-05,2]
[348068337,1736292632531,-500.0,9.179e-05,2]
[348068339,1736292632541,-500.0,9.179e-05,2]
[348068341,1736292632550,-500.0,9.179e-05,2]
[348068343,1736292632559,-561.68,9.179e-05,2]
[348068345,1736292632568,-500.0,9.179e-05,2]
[348068348,1736292632577,-500.0,9.179e-05,2]
[348068350,1736292632586,-500.0,9.179e-05,2]
[348068352,1736292632596,-500.0,9.179e-05,2]
[348068354,1736292632605,-500.0,9.179e-05,2]
[348068356,1736292632614,-500.0,9.179e-05,2]
[348068357,1736292632623,-500.0,9.179e-05,2]
[348068358,1736292632633,-500.0,9.179e-05,2]
[348068359,1736292632642,-500.0,9.179e-05,2]
[348068361,1736292632651,-500.0,9.179e-05,2]
[348068363,1736292632661,-650.26,9.179e-05,2]
[348068365,1736292632671,-500.0,9.179e-05,2]
[348068367,1736292632680,-1115.0,9.179e-05,2]
[348068369,1736292632689,-500.0,9.179e-05,2]
[348068371,1736292632698,-500.0,9.179e-05,2]
[348068373,1736292632707,-500.0,9.179e-05,2]
[348068375,1736292632717,-500.0,9.179e-05,2]
[348068378,1736292632727,-500.0,9.179e-05,2]
[348068380,1736292632736,-500.0,9.179e-05,2]
[348068381,1736292632745,-500.0,9.179e-05,2]
[348068383,1736292632754,-500.0,9.179e-05,2]
[348068385,1736292632763,-1082.07,9.179e-05,2]
[348068387,1736292632773,-649.16,9.179e-05,2]
[348068388,1736292632784,-987.88,9.179e-05,2]
[348068389,1736292632793,-672.76,9.179e-05,2]
[348068390,1736292632802,-500.0,9.179e-05,2]
[348068391,1736292632811,-500.0,9.179e-05,2]
[348068392,1736292632820,-500.0,9.179e-05,2]
[348068393,1736292632829,-500.0,9.179e-05,2]
[348068394,1736292632839,-562.11,9.179e-05,2]
[348068395,1736292632849,-500.0,9.179e-05,2]
[348068396,1736292632858,-500.0,9.179e-05,2]
[348068397,1736292632867,-500.0,9.179e-05,2]
[348068398,1736292632876,-500.0,9.179e-05,2]
[348068399,1736292632885,-500.0,9.179e-05,2]
[348068400,1736292632895,-500.0,9.179e-05,2]
[348068401,1736292632904,-500.0,9.179e-05,2]
[348068402,1736292632913,-500.0,9.179e-05,2]
[348068403,1736292632923,-620.94,9.179e-05,2]
[348068404,1736292632934,-500.0,9.179e-05,2]
[348068405,1736292632945,-500.0,9.179e-05,2]
[348068406,1736292632955,-500.0,9.179e-05,2]
[348068407,1736292632964,-691.37,9.179e-05,2]
[348068408,1736292632974,-500.0,9.179e-05,2]
[348068409,1736292632985,-915.97,9.179e-05,2]
[348068410,1736292632997,-548.18,9.179e-05,2]
[348068411,1736292633007,-500.0,9.179e-05,2]
[348068412,1736292633017,-748.05,9.179e-05,2]
[348068413,1736292633027,-500.0,9.179e-05,2]
[348068414,1736292633037,-500.0,9.179e-05,2]
[348068415,1736292633047,-500.0,9.179e-05,2]
[348068416,1736292633062,-500.0,9.179e-05,2]
[348068417,1736292633072,-785.16,9.179e-05,2]
[348068418,1736292633082,-523.95,9.179e-05,2]
[348068419,1736292633091,-856.44,9.18e-05,2]
[348068420,1736292633101,-981.16,9.18e-05,2]
[348068421,1736292633111,-1160.94,9.18e-05,2]
[348068422,1736292633120,-818.18,9.18e-05,2]
[348068423,1736292633130,-1925.98,9.18e-05,2]
[348068424,1736292633140,-220.10112629,9.18e-05,2]
[348068425,1736292633543,-1126.32887371,9.18e-05,2]
[348068426,1736292633552,-3191.57,9.18e-05,2]
[348068427,1736292633562,-966.74838283,9.18e-05,2]
[348068428,1736292633574,-1250.55161717,9.18e-05,2]
[348068429,1736292633583,-500.0,9.18e-05,2]
[348068430,1736292633592,-1106.25,9.18e-05,2]
[348068431,1736292633602,-3006.56,9.18e-05,2]
[348068432,1736292633611,-263.86638283,9.18e-05,2]
[348068433,1736292633623,-236.13361717,9.18e-05,2]
[348068434,1736292633632,-744.34,9.18e-05,2]
[348068435,1736292633642,-1231.32,9.18e-05,2]
[348068436,1736292633652,-1259.96,9.18e-05,2]
[348068437,1736292633662,-1978.38,9.18e-05,2]
[348068438,1736292633672,-245.36638283,9.18e-05,2]
[348068439,1736292633697,-810.70361717,9.18e-05,2]
[348068440,1736292633707,-3128.95,9.18e-05,2]
[348068441,1736292633716,-1437.13,9.18e-05,2]
[348068442,1736292633725,-2298.99,9.18e-05,2]
[348068443,1736292633735,-1358.28,9.18e-05,2]
[348068444,1736292633744,-1418.78,9.18e-05,2]
[348068445,1736292633753,-1573.5284,9.243e-05,2]
[348068446,1736292633764,-500.0,9.275e-05,2]
[348068447,1736292633774,-869.24,9.275e-05,2]
[348068448,1736292633783,-671.0,9.275e-05,2]
[348068449,1736292633793,-1267.31,9.275e-05,2]
[348068450,1736292633802,-2148.59,9.275e-05,2]
[348068451,1736292633812,-876.8,9.275e-05,2]
[348068452,1736292633822,-5460.23,9.275e-05,2]
[348068453,1736292633831,-500.0,9.275e-05,2]
[348068454,1736292633841,-596.22,9.275e-05,2]
[348068455,1736292633850,-2176.3,9.275e-05,2]
[348068456,1736292633859,-1159.33,9.275e-05,2]
[348068457,1736292633869,-1069.96,9.275e-05,2]
[348068458,1736292633879,-1526.92,9.275e-05,2]
[348068459,1736292633888,-1766.9,9.275e-05,2]
[348068460,1736292633899,-500.0,9.275e-05,2]
[348068461,1736292633909,-935.34,9.275e-05,2]
[348068462,1736292633918,-3211.9,9.275e-05,2]
[348068463,1736292633927,-936.837691,9.275e-05,2]
[348068464,1736292633937,-1374.41,9.275e-05,2]
[348068465,1736292633946,-848.56,9.275e-05,2]
[348068466,1736292633955,-864.840061,9.275e-05,2]
[348068467,1736292633964,-3269.2,9.275e-05,2]
[348068468,1736292633974,-157.965055,9.275e-05,2]
[348068469,1736292633983,-1755.43,9.275e-05,2]
[348068470,1736292633992,-1379.47,9.275e-05,2]
[348068471,1736292634001,-715.68,9.275e-05,2]
[348068472,1736292634011,-713.64,9.275e-05,2]
[348068473,1736292634021,-569.4,9.275e-05,2]
[348068474,1736292634031,-500.0,9.276e-05,2]
[348068475,1736292634041,-199.36133816,9.276e-05,2]
[348068476,1736292634050,-500.0,9.276e-05,2]
[348068477,1736292634062,-500.0,9.276e-05,2]
[348068478,1736292634072,-500.0,9.276e-05,2]
[348068479,1736292634082,-500.0,9.276e-05,2]
[348068480,1736292634092,-500.0,9.276e-05,2]
[348068481,1736292634103,-500.0,9.276e-05,2]
[348068482,1736292634113,-500.0,9.276e-05,2]
[348068483,1736292634123,-671.2439,9.276e-05,2]
[348068484,1736292634133,-228.22328645,9.276e-05,2]
[348068485,1736292634143,-500.0,9.276e-05,2]
[348068486,1736292634153,-500.0,9.276e-05,2]
[348068487,1736292634162,-500.0,9.276e-05,2]
[348068488,1736292634172,-500.0,9.276e-05,2]
[348068489,1736292634182,-500.0,9.276e-05,2]
[348068490,1736292634192,-500.0,9.276e-05,2]
[348068491,1736292634201,-500.0,9.276e-05,2]
[348068492,1736292634211,-500.0,9.276e-05,2]
[348068493,1736292634220,-500.0,9.276e-05,2]
[348068494,1736292634230,-500.0,9.276e-05,2]
[348068495,1736292634239,-497.18,9.276e-05,2]
[348068496,1736292634249,-500.0,9.276e-05,2]
[348068497,1736292634259,-500.0,9.276e-05,2]
[348068498,1736292634268,-184.5,9.276e-05,2]
[348068499,1736292634278,-500.0,9.276e-05,2]
[348068500,1736292634287,-500.0,9.276e-05,2]
[348068501,1736292634296,-500.0,9.276e-05,2]
[348068502,1736292634306,-500.0,9.276e-05,2]
[348068503,1736292634316,-500.0,9.276e-05,2]
[348068504,1736292634325,-622.83196162,9.276e-05,2]
[348068505,1736292634334,-500.0,9.276e-05,2]
[348068506,1736292634344,-500.0,9.276e-05,2]
[348068507,1736292634354,-270.22,9.276e-05,2]
[348068508,1736292634364,-500.0,9.276e-05,2]
[348068509,1736292634374,-500.0,9.276e-05,2]
[348068510,1736292634383,-500.0,9.276e-05,2]
[348068511,1736292634394,-500.0,9.276e-05,2]
[348068512,1736292634404,-505.87875668,9.276e-05,2]
[348068513,1736292634413,-500.0,9.276e-05,2]
[348068514,1736292634423,-278.80508513,9.276e-05,2]
[348068515,1736292634432,-500.0,9.276e-05,2]
[348068516,1736292634441,-500.0,9.276e-05,2]
[348068517,1736292634451,-150.0,9.276e-05,2]
[348068518,1736292634461,-500.0,9.276e-05,2]
[348068519,1736292634470,-500.0,9.276e-05,2]
[348068520,1736292634480,-293.84,9.276e-05,2]
[348068521,1736292634489,-537.92,9.276e-05,2]
[348068522,1736292634499,-500.0,9.276e-05,2]
[348068523,1736292634508,-500.0,9.276e-05,2]
[348068524,1736292634517,-500.0,9.276e-05,2]
[348068525,1736292634527,-500.0,9.276e-05,2]
[348068526,1736292634536,-500.0,9.276e-05,2]
[348068527,1736292634545,-500.0,9.276e-05,2]
[348068528,1736292634555,-500.0,9.276e-05,2]
[348068529,1736292634564,-500.0,9.276e-05,2]
[348068530,1736292634573,-500.0,9.276e-05,2]
[348068531,1736292634583,-500.0,9.276e-05,2]
[348068532,1736292634592,-500.0,9.276e-05,2]
[348068533,1736292634602,-500.0,9.276e-05,2]
[348068534,1736292634611,-500.0,9.276e-05,2]
[348068535,1736292634621,-500.0,9.276e-05,2]
[348068536,1736292634631,-500.0,9.276e-05,2]
[348068537,1736292634641,-500.0,9.276e-05,2]
[348068538,1736292634653,-500.0,9.276e-05,2]
[348068539,1736292634663,-500.0,9.276e-05,2]
[348068540,1736292634672,-500.0,9.276e-05,2]
[348068541,1736292634682,-500.0,9.276e-05,2]
[348068542,1736292634691,-500.0,9.276e-05,2]
[348068543,1736292634701,-500.0,9.276e-05,2]
[348068544,1736292634711,-500.0,9.276e-05,2]
[348068545,1736292634720,-500.0,9.276e-05,2]
[348068546,1736292634729,-500.0,9.276e-05,2]
[348068547,1736292634739,-500.0,9.276e-05,2]
[348068548,1736292634749,-500.0,9.276e-05,2]
[348068549,1736292634758,-500.0,9.276e-05,2]
[348068550,1736292634768,-808.86,9.276e-05,2]
[348068551,1736292634777,-500.0,9.276e-05,2]
[348068552,1736292634787,-873.35,9.276e-05,2]
[348068553,1736292634796,-500.0,9.276e-05,2]
[348068554,1736292634806,-500.0,9.276e-05,2]
[348068555,1736292634815,-500.0,9.276e-05,2]
[348068556,1736292634825,-500.0,9.276e-05,2]
[348068557,1736292634834,-627.81,9.276e-05,2]
[348068558,1736292634844,-500.0,9.276e-05,2]
[348068559,1736292634853,-500.0,9.276e-05,2]
[348068560,1736292634862,-500.0,9.276e-05,2]
[348068561,1736292634872,-500.0,9.276e-05,2]
[348068562,1736292634882,-500.0,9.276e-05,2]
[348068563,1736292634891,-500.0,9.276e-05,2]
[348068564,1736292634900,-1651.15,9.276e-05,2]
[348068565,1736292634910,-830.73,9.276e-05,2]
[348068566,1736292634919,-2943.89,9.276e-05,2]
[348068567,1736292634928,-1390.53,9.276e-05,2]
[348068568,1736292634937,-747.25,9.276e-05,2]
[348068569,1736292634946,-693.1,9.276e-05,2]
[348068570,1736292634955,-500.0,9.276e-05,2]
[348068571,1736292634965,-500.0,9.276e-05,2]
[348068572,1736292634974,-735.02,9.276e-05,2]
[348068573,1736292634983,-714.32,9.276e-05,2]
[348068574,1736292634992,-500.0,9.276e-05,2]
[348068575,1736292635001,-500.0,9.276e-05,2]
[348068576,1736292635010,-1293.95,9.276e-05,2]
[348068577,1736292635021,-500.0,9.276e-05,2]
[348068578,1736292635031,-500.0,9.276e-05,2]
[348068579,1736292635041,-500.0,9.276e-05,2]
[348068580,1736292635051,-541.76325889,9.276e-05,2]
[348068581,1736292635061,-669.98,9.276e-05,2]
[348068582,1736292635072,-1091.45,9.276e-05,2]
[348068583,1736292635081,-500.0,9.276e-05,2]
[348068584,1736292635091,-500.0,9.276e-05,2]
[348068585,1736292635100,-768.98,9.276e-05,2]
[348068586,1736292635110,-500.0,9.276e-05,2]
[348068587,1736292635120,-536.11,9.276e-05,2]
[348068588,1736292635129,-500.0,9.276e-05,2]
[348068589,1736292635140,-1066.69,9.276e-05,2]
[348068590,1736292635151,-500.0,9.276e-05,2]
[348068591,1736292635161,-5859.49,9.277e-05,2]
[348068592,1736292635171,-1032.62,9.277e-05,2]
[348068593,1736292635180,-628.06,9.277e-05,2]
[348068594,1736292635190,-648.95,9.277e-05,2]
[348068595,1736292635199,-2801.34,9.277e-05,2]
[348068596,1736292635208,-500.0,9.277e-05,2]
[348068597,1736292635218,-1062.87,9.277e-05,2]
[348068598,1736292635228,-1463.66,9.277e-05,2]
[348068599,1736292635238,-1150.62,9.277e-05,2]
[348068600,1736292635248,-1898.62,9.277e-05,2]
[348068601,1736292635257,-1000.0,9.277e-05,2]
[348068602,1736292635267,-1279.25,9.277e-05,2]
[348068603,1736292635277,-778.74,9.277e-05,2]
[348068604,1736292635286,-2516.19,9.277e-05,2]
[348068605,1736292635296,-2106.61,9.277e-05,2]
[348068606,1736292635305,-541.07,9.352e-05,2]
[348068607,1736292635314,-500.0,9.352e-05,2]
[348068608,1736292635323,-500.0,9.352e-05,2]
[348068609,1736292635333,-500.0,9.352e-05,2]
[348068610,1736292635342,-500.0,9.352e-05,2]
[348068611,1736292635352,-500.0,9.352e-05,2]
[348068612,1736292635362,-524.27,9.352e-05,2]
[348068613,1736292635371,-571.57,9.352e-05,2]
[348068614,1736292635380,-500.0,9.352e-05,2]
[348068615,1736292635389,-500.0,9.352e-05,2]
[348068616,1736292635399,-500.0,9.352e-05,2]
[348068617,1736292635408,-693.44,9.352e-05,2]
[348068618,1736292635418,-509.19,9.352e-05,2]
[348068619,1736292635427,-500.0,9.352e-05,2]
[348068620,1736292635436,-657.72,9.352e-05,2]
[348068621,1736292635445,-500.0,9.352e-05,2]
[348068622,1736292635650,-500.0,9.352e-05,2]
[348068623,1736292635660,-500.0,9.352e-05,2]
[348068624,1736292635669,-500.0,9.352e-05,2]
[348068625,1736292635678,-500.0,9.352e-05,2]
[348068626,1736292635688,-500.0,9.352e-05,2]
[348068627,1736292635697,-500.0,9.352e-05,2]
[348068628,1736292635706,-521.0,9.352e-05,2]
[348068629,1736292635715,-500.0,9.352e-05,2]
[348068630,1736292635724,-503.96,9.352e-05,2]
[348068631,1736292635734,-500.0,9.352e-05,2]
[348068632,1736292635743,-500.0,9.352e-05,2]
[348068633,1736292635752,-500.0,9.352e-05,2]
[348068634,1736292635762,-500.0,9.352e-05,2]
[348068635,1736292635772,-500.0,9.352e-05,2]
[348068636,1736292635781,-561.94,9.352e-05,2]
[348068637,1736292635790,-589.55,9.352e-05,2]
[348068638,1736292635802,-500.0,9.352e-05,2]
[348068639,1736292635812,-500.0,9.352e-05,2]
[348068640,1736292635821,-500.0,9.352e-05,2]
[348068641,1736292635832,-500.0,9.352e-05,2]
[348068642,1736292635842,-500.0,9.352e-05,2]
[348068643,1736292635851,-669.39,9.352e-05,2]
[348068644,1736292635861,-500.0,9.352e-05,2]
[348068645,1736292635870,-500.0,9.352e-05,2]
[348068646,1736292635882,-500.0,9.352e-05,2]
[348068647,1736292635893,-500.0,9.352e-05,2]
[348068648,1736292635902,-500.0,9.352e-05,2]
[348068649,1736292635911,-602.31,9.352e-05,2]
[348068650,1736292635921,-500.0,9.352e-05,2]
[348068651,1736292635930,-500.0,9.352e-05,2]
[348068652,1736292635941,-500.0,9.352e-05,2]
[348068653,1736292635950,-500.0,9.352e-05,2]
[348068654,1736292635968,-543.78,9.352e-05,2]
[348068655,1736292635979,-500.0,9.352e-05,2]
[348068656,1736292635990,-500.0,9.352e-05,2]
[348068657,1736292636001,-500.0,9.352e-05,2]
[348068658,1736292636011,-500.0,9.352e-05,2]
[348068659,1736292636021,-631.46,9.352e-05,2]
[348068660,1736292636032,-500.0,9.352e-05,2]
[348068661,1736292636041,-500.0,9.352e-05,2]
[348068662,1736292636053,-500.0,9.352e-05,2]
[348068663,1736292636065,-500.0,9.352e-05,2]
[348068664,1736292636075,-500.0,9.352e-05,2]
[348068665,1736292636085,-500.0,9.352e-05,2]
[348068666,1736292636094,-500.0,9.352e-05,2]
[348068667,1736292636105,-500.0,9.352e-05,2]
[348068668,1736292636115,-563.2463246,9.352e-05,2]
[348068669,1736292636125,-618.91,9.352e-05,2]
[348068670,1736292636135,-514.71,9.352e-05,2]
[348068671,1736292636146,-500.0,9.352e-05,2]
[348068672,1736292636155,-500.0,9.352e-05,2]
[348068673,1736292636165,-500.0,9.352e-05,2]
[348068674,1736292636174,-500.0,9.352e-05,2]
[348068675,1736292636184,-662.58,9.352e-05,2]
[348068676,1736292636194,-500.0,9.352e-05,2]
[348068677,1736292636203,-500.0,9.352e-05,2]
[348068678,1736292636212,-643.65,9.352e-05,2]
[348068679,1736292636222,-574.37,9.352e-05,2]
[348068680,1736292636231,-500.0,9.352e-05,2]
[348068681,1736292636240,-500.0,9.352e-05,2]
[348068682,1736292636250,-640.72,9.352e-05,2]
[348068683,1736292636259,-500.0,9.352e-05,2]
[348068684,1736292636270,-500.0,9.352e-05,2]
[348068685,1736292636280,-826.87,9.352e-05,2]
[348068686,1736292636290,-536.48,9.352e-05,2]
[348068687,1736292636300,-548.03,9.352e-05,2]
[348068688,1736292636309,-500.0,9.352e-05,2]
[348068689,1736292636318,-500.0,9.352e-05,2]
[348068690,1736292636328,-500.0,9.352e-05,2]
[348068691,1736292636337,-500.0,9.352e-05,2]
[348068692,1736292636347,-698.06,9.352e-05,2]
[348068693,1736292636356,-500.0,9.352e-05,2]
[348068694,1736292636366,-500.0,9.352e-05,2]
[348068695,1736292636375,-500.0,9.352e-05,2]
[348068696,1736292636384,-500.0,9.352e-05,2]
[348068697,1736292636394,-604.13,9.352e-05,2]
[348068698,1736292636404,-500.0,9.352e-05,2]
[348068699,1736292636414,-500.0,9.352e-05,2]
[348068700,1736292636424,-559.91,9.352e-05,2]
[348068701,1736292636433,-2335.15,9.352e-05,2]
[348068702,1736292636443,-261.77483749,9.352e-05,2]
[348068703,1736292636453,-3858.83,9.352e-05,2]
[348068704,1736292636462,-576.27,9.352e-05,2]
[348068705,1736292636472,-500.0,9.352e-05,2]
[348068706,1736292636481,-500.0,9.352e-05,2]
[348068707,1736292636491,-500.0,9.352e-05,2]
[348068708,1736292636500,-752.42,9.352e-05,2]
[348068709,1736292636510,-2247.14,9.352e-05,2]
[348068710,1736292636519,-500.0,9.352e-05,2]
[348068711,1736292636529,-500.0,9.352e-05,2]
[348068712,1736292636538,-703.22,9.352e-05,2]
[348068713,1736292636547,-709.69,9.352e-05,2]
[348068714,1736292636557,-3001.65,9.352e-05,2]
[348068715,1736292636566,-500.0,9.352e-05,2]
[348068716,1736292636575,-500.0,9.352e-05,2]
[348068717,1736292636584,-500.0,9.352e-05,2]
[348068718,1736292636594,-170.08373119,9.352e-05,2]
[348068719,1736292636603,-944.77,9.352e-05,2]
[348068720,1736292636613,-500.0,9.352e-05,2]
[348068721,1736292636622,-1004.2,9.352e-05,2]
[348068722,1736292636631,-501.02,9.352e-05,2]
[348068723,1736292636641,-500.0,9.352e-05,2]
[348068724,1736292636651,-500.0,9.352e-05,2]
[348068725,1736292636660,-500.0,9.352e-05,2]
[348068726,1736292636670,-500.0,9.352e-05,2]
[348068727,1736292636679,-555.21,9.352e-05,2]
[348068728,1736292636689,-575.12,9.352e-05,2]
[348068729,1736292636699,-941.82,9.352e-05,2]
[348068730,1736292636709,-500.0,9.352e-05,2]